Cogmind - Beta 14 @@@ ROGUE MODE // 2024.10.16 @ 12:44:22 Player: Beef Result: Self-destructed Performance ------------- Evolutions (7) 3500 Regions Visited (19) 3800 Robots Destroyed (224) 1120 Value Destroyed (9116) 9116 Prototype IDs (44) 880 Alien Tech Used (0) 0 Bonus (2293) 2293 TOTAL SCORE: 20709 Bonus ------- High Alert Combat Kills 70 Follower Combat Kills 164 Met Data Miner 300 Met Warlord at Base 500 MAIN.C Attacked Warlord 500 Warlord Defense Kills 956 Friendly Fire -197 Cogmind --------- Core Integrity 643/1300 Matter 68/300 Energy 96/100 System Corruption 5% Temperature Cool (40) Movement Hovering (71) Location -3/Testing Parts ------- > --- POWER (2) -------- (None) > --- PROPULSION (6) --- Combat Antigrav System Combat Antigrav System Combat Antigrav System Combat Antigrav System Cooled Impulse Thruster > --- UTILITY (10) ----- Experimental Coolant Injector Medium Storage Unit Advanced Gravity Neutralizer Improved Signal Interpreter Advanced Signal Interpreter Improved Targeting Computer Core Analyzer > --- WEAPON (3) ------- Enhanced Coil Gun Perforator > --- INVENTORY (10) --- Myomer Leg Field Propulsion Array Field Propulsion Array Field Propulsion Array Coil Gun Peak State ------------ > --- POWER ------------ Vortex Chain Reactor > --- PROPULSION ------- Flexi-carbon Leg Myomer Leg Enhanced Biometal Leg Antigrav System Improved Gyrokinetic Inverter Improved Gyrokinetic Inverter > --- UTILITY ---------- Advanced Heat Sink Advanced Cooling System Improved Target Analyzer Improved Target Analyzer Experimental Cloaking Device Improved Light Armor Plating Thermal Barrier Improved Force Field > --- WEAPON ----------- Wave Gun Heavy Phase Cannon KE Penetrator > --- INVENTORY -------- Improved Treads Medium Treads High-powered Tractor Beam Phase Cannon Improved Plasma Cutter [Rating: 132] Favorites ----------- Power Cold Fusion Reactor Engine Light Ion Engine Power Core Neutrino Core Reactor Cold Fusion Reactor Propulsion Flexi-carbon Leg Treads Medium Treads Leg Flexi-carbon Leg Wheel Armored Huge Wheel Hover Unit Combat Antigrav System Flight Unit VTOL Module Utility High-capacity Storage Unit Device Advanced Heat Sink Storage High-capacity Storage Unit Processor Experimental Targeting Computer Hackware Hacking Suite Protection Improved Light Armor Plating Weapon KE Penetrator Energy Gun Advanced Beam Rifle Energy Cannon Cooled Particle Cannon Ballistic Gun KE Penetrator Ballistic Cannon Hypervelocity Mass Driver Launcher Rocket Array Slashing Weapon Makeshift Sword Piercing Weapon Lance Special Melee Weapon Advanced Datajack Build | -11 -10 -10 -10 -9 -8 -7 -6 -6 -6 -6 -5 -5 -5 -5 -5 -4 -4 -3 -3 ------- Run | Yrd Mat Min Exi Min Mat Fac Fac Low Low Dat Pro Fac Upp Upp War Pro Fac Res Tes Slots Evolved 14 | . . . . . 4 2 2 . . . . 2 . . . . 2 2 . Power 1 | . . . . . . . . . . . . . . . . . 1 . . Propulsion 4 | . . . . . 2 . 1 . . . . 1 . . . . . . . Utility 8 | . . . . . 2 2 . . . . . 1 . . . . 1 2 . Weapon 1 | . . . . . . . 1 . . . . . . . . . . . . Parts Attached 323 | 7 1 2 1 4 30 44 36 5 . 3 14 31 6 9 16 18 60 9 27 Power 30 | 1 . 1 . 1 4 5 4 . . . 1 2 . 2 2 1 2 1 3 Engine 9 | 1 . 1 . 1 2 1 . . . . . 1 . . . . . . 2 Core 14 | . . . . . 2 4 3 . . . 1 1 . 2 1 . . . . Reactor 7 | . . . . . . . 1 . . . . . . . 1 1 2 1 1 Propulsion 102 | 2 . . . 2 11 20 6 2 . . 5 7 1 1 7 5 22 4 7 Treads 19 | 2 . . . . 2 3 2 1 . . 1 4 . . . 1 3 . . Leg 46 | . . . . 2 7 9 . . . . 4 3 1 1 7 4 8 . . Wheel 17 | . . . . . 2 8 4 1 . . . . . . . . 2 . . Hover 12 | . . . . . . . . . . . . . . . . . 5 1 6 Flight 8 | . . . . . . . . . . . . . . . . . 4 3 1 Utility 86 | 2 1 . 1 . 6 6 13 1 . . 3 8 . 2 5 5 23 2 8 Device 42 | 1 . . . . 4 2 4 . . . 2 5 . 2 4 4 9 . 5 Storage 9 | 1 . . 1 . 1 . 1 . . . . . . . . . 3 1 1 Processor 14 | . 1 . . . . 1 3 . . . 1 . . . 1 . 4 1 2 Hackware 4 | . . . . . 1 1 1 . . . . 1 . . . . . . . Protection 17 | . . . . . . 2 4 1 . . . 2 . . . 1 7 . . Artifact . | . . . . . . . . . . . . . . . . . . . . Weapon 105 | 2 . 1 . 1 9 13 13 2 . 3 5 14 5 4 2 7 13 2 9 Energy Gun 22 | . . . . . 2 7 3 . . . . 2 . . 1 . 6 . 1 Energy Cannon 18 | . . . . . . 2 6 2 . 3 1 2 . . . . 2 . . Ballistic Gun 35 | 2 . 1 . 1 6 2 . . . . . 6 3 3 1 2 3 . 5 Ballistic Cannon 7 | . . . . . 1 . 2 . . . 3 . . . . . . . 1 Launcher 11 | . . . . . . . 2 . . . 1 2 2 1 . 3 . . . Special Weapon . | . . . . . . . . . . . . . . . . . . . . Impact Weapon . | . . . . . . . . . . . . . . . . . . . . Slashing Weapon 8 | . . . . . . 2 . . . . . 2 . . . 2 . 1 1 Piercing Weapon 1 | . . . . . . . . . . . . . . . . . 1 . . Special Melee Weapon 3 | . . . . . . . . . . . . . . . . . 1 1 1 Unidentified Prototypes 27 | . . . . . 3 3 7 . . . . . . 1 4 1 2 . 6 Corrupted Parts 3 | . . . . . . . . . . . . . . . . . 3 . . System Corruption 18 | . . . . . . . . . . . . . . . . . 18 . . Parts Lost 129 | . . . . 3 15 14 2 . . . 8 18 2 . . 20 34 3 10 Power 18 | . . . . 1 4 3 1 . . . . 1 1 . . 1 2 . 4 Propulsion 46 | . . . . 1 6 6 . . . . 4 5 1 . . 7 15 . 1 Utility 33 | . . . . . 1 2 1 . . . 2 7 . . . 8 8 3 1 Weapon 32 | . . . . 1 4 3 . . . . 2 5 . . . 4 9 . 4 Highest Loss Streak 20 | . . . . 3 7 5 1 . . . 5 6 1 . . 19 20 3 4 To Critical Strikes 4 | . . . . . . 1 . . . . . 1 . . . . 1 . 1 Average Slot Usage (%) 89 | . 100 100 100 97 93 94 95 87 86 68 85 92 98 100 99 58 80 25 59 Engine 2 | . 14 14 14 12 3 . . . . . . 2 . . . . . . 2 Core 2 | . . . . . 5 6 2 . . . 1 2 4 5 4 . . . . Reactor 2 | . . . . . . . 3 6 6 6 4 . . . . 4 4 . 2 Treads 8 | . 28 28 28 14 9 1 7 6 6 6 5 9 12 10 2 . 3 . . Leg 12 | . . . . 12 20 22 . . . . . 19 20 23 32 20 17 . . Wheel 5 | . . . . . 2 5 21 14 13 13 12 . . . . . 1 . . Device 10 | . 13 . . . 13 7 8 6 6 6 11 5 17 17 16 11 18 4 4 Storage 6 | . 14 14 14 14 9 7 6 6 6 6 6 5 5 5 5 5 3 . 3 Processor 9 | . . 14 14 14 9 15 6 6 6 6 11 11 11 11 11 2 7 11 12 Hackware 4 | . . . . . 3 10 9 7 6 6 6 7 5 5 5 . . . . Protection 3 | . . . . . . 1 5 11 13 13 2 6 . . . 3 5 . . Energy Gun 2 | . . . . . 4 6 3 5 . . . 5 . . . . 3 . 1 Energy Cannon 5 | . . . . . . 2 12 13 20 2 18 2 1 . . . 4 . . Ballistic Gun 8 | . 28 28 28 28 10 2 . . . . . 5 15 17 16 3 2 . 2 Peak Build Rating 132 | 9 9 8 8 8 31 40 65 72 72 72 77 87 87 90 103 105 132 75 127 Average Rating 61 | 6 8 7 8 7 20 35 55 68 72 57 72 74 85 89 92 68 103 40 85 On Entrance 48 | . 9 7 8 8 8 31 33 64 72 72 72 59 81 82 86 103 79 28 75 Naked Turns . | . . . . . . . . . . . . . . . . . . . . Heaviest Build 271 | 12 12 11 26 26 50 77 94 85 85 85 92 79 72 72 74 76 271 14 37 Greatest Support 130 | 40 40 40 40 40 47 48 66 56 56 56 71 84 84 90 130 130 100 45 96 Greatest Overweight (x) 13 | 1 . . . 1 2 2 2 1 1 1 3 1 1 . . 1 13 . 1 Average Overweight (x) . | . . . . . . . 1 1 1 1 1 . . . . . . . . Largest Inventory Capacity 35 | 8 8 8 15 15 20 20 20 20 20 20 20 20 20 20 20 20 35 5 10 Average Capacity 17 | 7 8 8 8 15 15 20 20 20 20 20 20 20 20 20 20 20 15 5 9 Most Carried 20 | 4 7 8 8 10 17 20 20 20 20 20 20 20 19 20 20 20 15 5 10 Average Carried 15 | 2 5 7 8 9 11 18 19 19 20 20 19 16 16 19 17 15 10 4 8 Final Capacity 20 | 8 8 8 15 15 20 20 20 20 20 20 20 20 20 20 20 20 5 5 10 Final Carried 20 | 4 7 8 8 9 17 18 20 20 20 20 16 17 18 14 20 14 5 4 8 Class Distribution -------------------- 23% | Scavenger-Gunner 21% | Mutant 15% | Scavenger-Mutant 9% | Tank 6% | Skirmisher 5% | Hacker-Gunner 4% | Scavenger-Skirmisher 4% | Scavenger-Tank 3% | Hacker-Mutant Dominant Class ---------------- Mutant | -10/Materials Mutant | -10/Mines Mutant | -10/Exiles Scavenger-Mutant | -9/Mines Scavenger-Skirmisher | -8/Materials Scavenger-Mutant | -7/Factory Hacker-Gunner | -6/Factory Tank | -6/Lower Caves Tank | -6/Lower Caves Mutant | -6/Data Miner Skirmisher | -5/Proximity Caves Scavenger-Gunner | -5/Factory Scavenger-Gunner | -5/Upper Caves Scavenger-Gunner | -5/Upper Caves Scavenger-Gunner | -5/Warlord Mutant | -4/Proximity Caves Scavenger-Tank | -4/Factory Mutant | -3/Research Mutant | -3/Testing Resources | -11 -10 -10 -10 -9 -8 -7 -6 -6 -6 -6 -5 -5 -5 -5 -5 -4 -4 -3 -3 ----------- Run | Yrd Mat Min Exi Min Mat Fac Fac Low Low Dat Pro Fac Upp Upp War Pro Fac Res Tes Matter Collected 6188 | 294 113 101 . 96 607 580 514 48 81 . 393 770 194 416 393 403 736 . 449 Remotely 232 | . . . . . . . . . . . . . . . . . 232 . . Salvage Created 10319 | 114 179 208 . 84 791 1167 963 . 88 . 1383 1441 190 230 433 738 1753 . 557 Parts 428 | 6 19 9 . 10 42 57 31 . 3 . 60 37 14 14 17 22 67 . 20 Haulers Intercepted 6 | . . . . . 1 1 2 . . . . 1 . . . . 1 . . Recyclers Shooed 17 | . 1 . . . 2 1 . . . . 1 5 . . . . 4 . 3 Parts Field Recycled . | . . . . . . . . . . . . . . . . . . . . Retrieved Matter . | . . . . . . . . . . . . . . . . . . . . Parts Self-Destructed 104 | . . . . . . . . . 3 . 65 . 8 12 . 16 . . . Prevented . | . . . . . . . . . . . . . . . . . . . . Kills | -11 -10 -10 -10 -9 -8 -7 -6 -6 -6 -6 -5 -5 -5 -5 -5 -4 -4 -3 -3 ------- Run | Yrd Mat Min Exi Min Mat Fac Fac Low Low Dat Pro Fac Upp Upp War Pro Fac Res Tes Combat Hostiles Destroyed 169 | . 5 5 . 5 17 18 11 . 1 . 24 20 10 7 7 15 19 . 5 Melee 7 | . . . . . . . . . . . . 1 . . . . 5 . 1 Guns 75 | . 5 5 . 5 11 10 2 . . . . 9 1 7 7 6 5 . 2 Cannons 53 | . . . . . 5 7 6 . . . 20 5 1 . . . 7 . 2 AOE 30 | . . . . . 1 . 2 . . . 4 5 8 . . 9 1 . . Classes Destroyed 19 | 2 4 . . . 4 4 . . 1 . 2 . . . 2 . . . . Worker 10 | . . . . . . 1 5 . . . . 1 . . . . . . 3 Builder 6 | . . . . . 1 3 . . . . . . . . . . 2 . . Tunneler 4 | 1 . . . . . 2 1 . . . . . . . . . . . . Hauler 6 | . . . . . 1 1 2 . . . . 1 . . . . 1 . . Recycler 16 | 1 . . . . 2 3 1 . . . 1 3 . . . . 3 . 2 Operator 3 | . 1 . . . . . . . . . . 1 . . . . 1 . . Watcher 9 | . 2 . . . 1 1 3 . . . 2 . . . . . . . . Swarmer 45 | . 3 3 . 4 3 3 . . . . 7 . 9 6 . 1 3 . 3 Saboteur 2 | . . . . . . . . . . . . . . . 1 1 . . . Grunt 61 | . 2 2 . 1 9 8 6 . . . 4 13 . . 1 9 6 . . Brawler 4 | . . . . . . 1 . . . . . . . . 1 2 . . . Duelist 8 | . . . . . . 1 . . . . 4 1 . . . 2 . . . Protector 1 | . . . . . . . . . . . 1 . . . . . . . . Sentry 20 | . . . . . 4 1 3 . . . 4 3 . 1 . . 3 . 1 Hunter 9 | . . . . . 1 1 . . . . 4 1 . . 1 . . . 1 Programmer 17 | . . . . . . 3 2 . . . . 2 1 . 2 . 7 . . Behemoth 2 | . . . . . . . . . 1 . 1 . . . . . . . . Executioner 1 | . . . . . . . . . . . . . . . 1 . . . . Samaritan 1 | . . . . . . . . . . . 1 . . . . . . . . Best Kill Streak 12 | 2 3 4 . 4 4 12 5 . 1 . 10 6 5 3 4 4 4 . 4 Combat Bots Only 10 | . 2 4 . 4 3 3 3 . 1 . 10 5 5 3 4 4 3 . 4 Max Kills in Single Turn 5 | 1 1 1 . 1 2 5 2 . 1 . 2 5 5 1 2 3 2 . 1 Gunslinging 1 | . . . . . 1 . . . . . . . . . 1 . . . . Exploded 5 | . . . . . 1 . 1 . . . 2 4 5 . . 3 1 . . Melee 1 | . . . . . . . . . . . . 1 . . . . 1 . 1 Uniques/NPCs Destroyed . | . . . . . . . . . . . . . . . . . . . . Combat | -11 -10 -10 -10 -9 -8 -7 -6 -6 -6 -6 -5 -5 -5 -5 -5 -4 -4 -3 -3 -------- Run | Yrd Mat Min Exi Min Mat Fac Fac Low Low Dat Pro Fac Upp Upp War Pro Fac Res Tes Hostile Shots Fired 1800 | . 21 30 . 51 99 246 87 . 3 . 219 164 19 20 59 114 485 42 141 Missed 565 | . 5 11 . 13 19 87 34 . 2 . 70 46 9 11 22 27 151 12 46 Damage Taken 21286 | . 154 191 . 481 1463 2185 734 . . . 2761 2673 160 137 851 1952 5176 711 1657 Core 3111 | . 10 38 . 144 213 376 63 . . . 317 204 17 26 175 243 628 499 158 Absorbed by Shields 1072 | . . . . . . . . . . . . . . . . . 1059 . 13 Ignored by Resistances 691 | . . . . . . . 20 . . . . . . . . 370 301 . . Regen/Repaired (Parts) 188 | . . . . . . . 116 . . . . . . . 72 . . . . Core Remaining (%) 51 | 100 . . . 23 61 46 . . . . 55 . . . . 33 45 . . Volleys Fired 589 | 6 28 18 . 19 64 90 38 . 9 . 72 76 8 10 14 27 77 . 33 Largest 3 | 2 2 2 . 2 2 2 3 . 3 . 3 3 3 3 3 3 3 . 3 Hottest 278 | 40 40 40 . 40 122 122 200 . 218 . 278 236 164 99 99 99 238 . 151 Shots Fired 1335 | 12 56 36 . 37 103 178 98 1 28 . 208 177 20 30 42 47 191 . 71 Gun 855 | 12 56 36 . 37 79 149 24 1 . . . 147 15 30 42 39 119 . 69 Cannon 462 | . . . . . 24 29 72 . 28 . 205 27 3 . . . 72 . 2 Launcher 18 | . . . . . . . 2 . . . 3 3 2 . . 8 . . . Special . | . . . . . . . . . . . . . . . . . . . . Kinetic 611 | 12 56 36 . 37 86 34 6 . . . 32 83 15 30 42 39 49 . 54 Thermal 701 | . . . . . 17 144 90 1 28 . 173 86 3 . . . 142 . 17 Explosive 18 | . . . . . . . 2 . . . 3 3 2 . . 8 . . . Electromagnetic 5 | . . . . . . . . . . . . 5 . . . . . . . Robot Hit Streak 21 | 6 7 12 . 6 12 18 21 . 1 . 14 16 3 9 18 14 12 . 7 Robot Miss Streak 9 | 1 8 4 . 3 3 7 9 . 1 . 4 3 3 2 7 2 4 . 9 Penetration Max 1 | . . . . . . . . . . . . . . . 1 1 1 . 1 Secondary Targets 17 | . . 1 . 1 2 3 . . . . . . . 1 4 4 1 . . Max Gunslinging Chain 1 | . . 1 . 1 1 1 . . . . . . . 1 1 1 1 . . Shots Hit Robots 856 | 10 27 26 . 22 79 111 65 . 1 . 104 145 7 20 28 35 130 . 46 Core Hits 508 | 4 15 10 . 10 42 59 55 . . . 60 84 16 9 11 51 60 . 22 Critical Kills 10 | . . . . . . . . . 1 . 2 2 . . 2 . 1 . 2 Critical Parts Destroyed 25 | . 1 . . . . . . . . . 8 5 2 . 1 1 2 . 5 Critical Strikes 61 | . 1 . . . 5 6 . . 1 . 10 11 2 . 3 3 12 . 7 Burn 14 | . . . . . 2 6 . . . . . 3 . . . . 3 . . Meltdown 1 | . . . . . . . . . 1 . . . . . . . . . . Destroy 36 | . 1 . . . . . . . . . 10 7 2 . 3 3 3 . 7 Blast 3 | . . . . . 3 . . . . . . . . . . . . . . Sever 7 | . . . . . . . . . . . . 1 . . . . 6 . . Melee Attacks 58 | . . . . . . 4 . . . . . 9 . . . 1 35 2 7 Impact . | . . . . . . . . . . . . . . . . . . . . Slashing 55 | . . . . . . 4 . . . . . 9 . . . 1 32 2 7 Piercing 1 | . . . . . . . . . . . . . . . . . 1 . . Sneak Attacks 7 | . . . . . . . . . . . . 2 . . . . 3 . 2 Combat Hostiles . | . . . . . . . . . . . . . . . . . . . . Follow-up Attacks 4 | . . . . . . . . . . . . . . . . . 4 . . Damage Inflicted 25960 | 120 296 269 . 191 1964 2839 2517 . 31 . 3625 4236 581 427 787 2345 4436 . 1296 Guns 11664 | 120 296 269 . 191 795 1916 685 . . . . 2337 153 427 787 1057 1742 . 889 Cannons 8153 | . . . . . 902 507 1207 . 31 . 3141 628 43 . . . 1650 . 44 Explosions 4660 | . . . . . 267 415 625 . . . 484 1046 385 . . 1288 150 . . Melee 1463 | . . . . . . . . . . . . 225 . . . . 882 . 356 Ramming 20 | . . . . . . 1 . . . . . . . . . . 12 . 7 Kinetic 8365 | 120 296 269 . 191 1497 451 66 . . . 297 1241 153 427 787 1057 877 . 636 Thermal 11896 | . . . . . 200 2387 1910 . 31 . 2844 1576 43 . . . 2608 . 297 Explosive 3973 | . . . . . 267 . 541 . . . 484 1008 385 . . 1288 . . . Electromagnetic 243 | . . . . . . . . . . . . 186 . . . . 57 . . Impact . | . . . . . . . . . . . . . . . . . . . . Slashing 1463 | . . . . . . . . . . . . 225 . . . . 882 . 356 Piercing . | . . . . . . . . . . . . . . . . . . . . Highest Corruption 35 | . . . . . 1 11 5 5 5 5 5 2 . . . 31 35 5 5 Average Corruption 10 | . . . . . 1 4 5 5 5 5 5 1 . . . 29 29 3 5 Corruption Purged 7 | . . . . . . 5 . . . . . 2 . . . . . . . Corruption Blocked . | . . . . . . . . . . . . . . . . . . . . Effects 261 | . . . . . 3 37 14 12 23 2 42 . . . . 29 85 2 12 Message Errors 58 | . . . . . . 9 4 4 4 1 10 . . . . 6 17 2 1 Matter Fused 60 | . . . . . 1 10 3 5 7 . 11 . . . . 5 14 . 4 Heat Flow Errors 24 | . . . . . . 4 3 . 3 . 1 . . . . 4 7 . 2 Energy Discharges 22 | . . . . . 1 5 . . 4 . 4 . . . . 1 6 . 1 Parts Rejected 3 | . . . . . . 1 . . . . . . . . . . 1 . 1 Parts Fused 5 | . . . . . . 1 . . . . . . . . . 1 3 . . Data Loss (minor) 27 | . . . . . 1 2 2 . 2 . 8 . . . . 4 6 . 2 Data Loss (major) 15 | . . . . . . 3 . 1 2 1 2 . . . . 3 3 . . Misfires 7 | . . . . . . 1 . 1 1 . 1 . . . . . 3 . . Alerts 3 | . . . . . . . . 1 . . 1 . . . . . 1 . . Misdirections 12 | . . . . . . . . . . . . . . . . 4 8 . . Weapon Failures 25 | . . . . . . 1 2 . . . 4 . . . . 1 16 . 1 Overload Shots 7 | . . . . . . . . . . . 7 . . . . . . . . Overflow Damage 855 | . . . . . 66 56 152 . . . 137 83 . . . 7 206 . 148 Projectiles 359 | . . . . . 19 . 58 . . . 123 . . . . . 159 . . Explosions 274 | . . . . . 47 56 94 . . . 14 9 . . . 7 47 . . Melee 222 | . . . . . . . . . . . . 74 . . . . . . 148 Knockbacks 22 | . . . . . 9 . 2 . . . 8 . . . . . . . 3 Impact . | . . . . . . . . . . . . . . . . . . . . Kinetic 22 | . . . . . 9 . 2 . . . 8 . . . . . . . 3 Secondary . | . . . . . . . . . . . . . . . . . . . . Self-Inflicted Damage 645 | . . . . . 146 . 118 . . . 15 50 . . . 245 68 . 3 Shots 18 | . . . . . 2 . 2 . . . 1 1 . . . 9 3 . . Rammed 1 | . . . . . . . . . . . . . . . . . . . 1 Targets Rammed 8 | . . . . . . 1 . . . . . . . . . . 6 . 1 Kicked 7 | . . . . . . 1 . . . . . . . . . . 6 . . Crushed . | . . . . . . . . . . . . . . . . . . . . Highest Temperature 392 | . 12 15 . 36 103 247 200 . 261 . 388 360 9 . . 224 392 . 291 Average Temperature 82 | . 6 7 . 16 31 48 43 . 81 . 92 109 6 . . 83 93 . 87 Received Heat Transfer 3199 | . 54 51 . 81 441 528 186 . . . 137 763 9 . 102 306 466 9 66 Effects 3 | . . . . . . . . . . . 2 1 . . . . . . . Shutdowns 2 | . . . . . . . . . . . 1 1 . . . . . . . Energy Bleed 1 | . . . . . . . . . . . 1 . . . . . . . . Siege Activations . | . . . . . . . . . . . . . . . . . . . . Robots Corrupted . | . . . . . . . . . . . . . . . . . . . . Combat Hostiles . | . . . . . . . . . . . . . . . . . . . . Parts Fried 1 | . . . . . . . . . . . . . . . . . 1 . . Impact Corruptions . | . . . . . . . . . . . . . . . . . . . . Robots Melted 5 | . . . . . . 1 1 . 1 . . 1 . . . . 1 . . Combat Hostiles 4 | . . . . . . 1 1 . 1 . . . . . . . 1 . . Parts Melted 54 | . . . . . . 8 16 . 3 . 6 7 . . 1 . 13 . . Heat Transferred 18250 | . . . . . 518 3987 2856 . 37 . 3786 3053 50 . . . 3556 . 407 Parts Sabotaged 3 | . . . . . . . . . . . . . . . 3 . . . . Parts Stolen . | . . . . . . . . . . . . . . . . . . . . Parts Stripped . | . . . . . . . . . . . . . . . . . . . . Power Chain Reactions 2 | . . . . . . . . . . . . 1 . . . . 1 . . Alert | -11 -10 -10 -10 -9 -8 -7 -6 -6 -6 -6 -5 -5 -5 -5 -5 -4 -4 -3 -3 ------- Run | Yrd Mat Min Exi Min Mat Fac Fac Low Low Dat Pro Fac Upp Upp War Pro Fac Res Tes Peak Influence 571 | 10 220 190 . 120 374 571 479 . . . . 302 . . . . 275 139 155 Initial 256 | . 6 85 . . 46 93 256 . . . . 7 . . . . . 120 78 Average 177 | 4 83 102 . 55 220 222 300 . . . . 151 . . . . 130 122 92 Maximum Alert Level 2 | . 1 . . . 1 2 2 . . . . 1 . . . . 1 . . Low Security (%) 63 | 100 98 100 . 100 31 68 5 . . . . 70 . . . . 81 100 100 Level 1 29 | . 1 . . . 68 1 84 . . . . 29 . . . . 18 . . Level 2 7 | . . . . . . 30 10 . . . . . . . . . . . . Level 3 . | . . . . . . . . . . . . . . . . . . . . Level 4 . | . . . . . . . . . . . . . . . . . . . . Level 5 . | . . . . . . . . . . . . . . . . . . . . High Security . | . . . . . . . . . . . . . . . . . . . . Max Security . | . . . . . . . . . . . . . . . . . . . . Squads Dispatched 25 | . 1 . . . 1 3 4 . . . 1 5 . . . 1 8 . 1 Investigation 4 | . . . . . 1 . . . . . 1 1 . . . . . . 1 Extermination 8 | . . . . . . 2 2 . . . . 1 . . . . 3 . . Reinforcement 11 | . 1 . . . . 1 2 . . . . 2 . . . . 5 . . Assault 2 | . . . . . . . . . . . . 1 . . . 1 . . . Garrison . | . . . . . . . . . . . . . . . . . . . . Intercept . | . . . . . . . . . . . . . . . . . . . . Searches Triggered . | . . . . . . . . . . . . . . . . . . . . Data Miner Redirects 2 | . . . . . . . . . . . . 1 . . . . . . 1 Construction Impeded . | . . . . . . . . . . . . . . . . . . . . Haulers Reinforced 3 | . . . . . . 1 1 . . . . 1 . . . . . . . Active Scanning Responses . | . . . . . . . . . . . . . . . . . . . . Cargo Convoy Interrupts . | . . . . . . . . . . . . . . . . . . . . Stealth | -11 -10 -10 -10 -9 -8 -7 -6 -6 -6 -6 -5 -5 -5 -5 -5 -4 -4 -3 -3 --------- Run | Yrd Mat Min Exi Min Mat Fac Fac Low Low Dat Pro Fac Upp Upp War Pro Fac Res Tes Distress Signals 13 | . 2 . . . 3 3 1 . . . 1 . . . 1 . 2 . . Communications Jammed 3 | . . . . . . . . . . . . . . . . . 3 . . Distress Signals 3 | . . . . . . . . . . . . . . . . . 3 . . Times Spotted 302 | . 12 5 . 8 20 41 18 . 1 . 36 32 11 8 28 17 46 5 14 Peak Tracking Total 9 | . 4 2 . 4 3 8 3 . 1 . 5 5 5 4 7 9 9 5 7 Tactical Retreats 23 | . . 1 . 2 . 5 1 . . . . . 3 1 . 1 8 . 1 Traps | -11 -10 -10 -10 -9 -8 -7 -6 -6 -6 -6 -5 -5 -5 -5 -5 -4 -4 -3 -3 ------- Run | Yrd Mat Min Exi Min Mat Fac Fac Low Low Dat Pro Fac Upp Upp War Pro Fac Res Tes Traps Triggered 11 | . . . . . 2 7 . . . . . 1 . . . . . . 1 Indirectly . | . . . . . . . . . . . . . . . . . . . . Trap Hack Attempts . | . . . . . . . . . . . . . . . . . . . . Triggered . | . . . . . . . . . . . . . . . . . . . . Disarmed . | . . . . . . . . . . . . . . . . . . . . Reprogrammed . | . . . . . . . . . . . . . . . . . . . . Reused . | . . . . . . . . . . . . . . . . . . . . Traps Extracted . | . . . . . . . . . . . . . . . . . . . . Installed . | . . . . . . . . . . . . . . . . . . . . Triggered 10 | . . 1 . . . . . . . . . . . . 8 1 . . . Machines | -11 -10 -10 -10 -9 -8 -7 -6 -6 -6 -6 -5 -5 -5 -5 -5 -4 -4 -3 -3 ---------- Run | Yrd Mat Min Exi Min Mat Fac Fac Low Low Dat Pro Fac Upp Upp War Pro Fac Res Tes Machines Disabled 48 | . . . . . 6 20 7 . . . 3 2 . . . . 7 . 3 Max in Single Turn 19 | . . . . . 4 19 3 . . . 1 1 . . . . 2 . 2 Garrison Access 4 | . . . . . 1 . 1 . . . . 2 . . . . . . . Machines Repaired . | . . . . . . . . . . . . . . . . . . . . Machines Dismantled . | . . . . . . . . . . . . . . . . . . . . Machines Sabotaged . | . . . . . . . . . . . . . . . . . . . . Overloaded Fab Kills . | . . . . . . . . . . . . . . . . . . . . Hacking | -11 -10 -10 -10 -9 -8 -7 -6 -6 -6 -6 -5 -5 -5 -5 -5 -4 -4 -3 -3 --------- Run | Yrd Mat Min Exi Min Mat Fac Fac Low Low Dat Pro Fac Upp Upp War Pro Fac Res Tes Machines Accessed 42 | . 1 . 1 . 3 5 7 1 . 4 3 7 1 . 2 . 5 . 2 Terminals 19 | . 1 . . . 2 2 3 . . . 1 6 . . . . 3 . 1 Fabricators 3 | . . . . . . 1 1 . . . 1 . . . . . . . . Repair Stations 3 | . . . . . . . 2 . . . . . . . . . . . 1 Recycling Units 3 | . . . . . . . . . . . 1 . . . . . 2 . . Scanalyzers 1 | . . . . . . 1 . . . . . . . . . . . . . Garrison Access 4 | . . . . . 1 1 1 . . . . 1 . . . . . . . Total Hacks 118 | . 1 . 4 . 11 10 21 1 . 30 6 19 1 . 2 . 9 . 3 Successful 69 | . . . 4 . 5 4 8 1 . 30 2 9 1 . 2 . 3 . . Failed 49 | . 1 . . . 6 6 13 . . . 4 10 . . . . 6 . 3 Catastrophic 9 | . 1 . . . . 1 . . . . 3 . . . . . 2 . 2 Database Lockouts . | . . . . . . . . . . . . . . . . . . . . Manual 31 | . 1 . . . 6 1 5 . . . . 13 . . 1 . 2 . 2 Terminals 48 | . 1 . . . 10 4 8 . . . 1 18 . . . . 4 . 2 Fabricators 9 | . . . . . . 2 4 . . . 3 . . . . . . . . Repair Stations 7 | . . . . . . . 6 . . . . . . . . . . . 1 Recycling Units 7 | . . . . . . . . . . . 2 . . . . . 5 . . Scanalyzers 3 | . . . . . . 3 . . . . . . . . . . . . . Garrison Access 6 | . . . . . 1 1 3 . . . . 1 . . . . . . . Terminal Hacks 48 | . . . 4 . 2 1 1 1 . 30 1 4 1 . 2 . 1 . . Record 15 | . . . 4 . . . . . . 11 . . . . . . . . . Part Schematic 9 | . . . . . . . . . . 9 . . . . . . . . . Robot Schematic 7 | . . . . . . . . . . 7 . . . . . . . . . Prototype ID Bank 6 | . . . . . 1 . . . . 3 . 2 . . . . . . . Open Door 5 | . . . . . . . . 1 . . 1 . 1 . 2 . . . . Emergency Access Points 1 | . . . . . . . 1 . . . . . . . . . . . . Terminal Index 2 | . . . . . 1 . . . . . . 1 . . . . . . . Alert Level 3 | . . . . . . 1 . . . . . 1 . . . . 1 . . Fabricator Hacks 2 | . . . . . . 1 1 . . . . . . . . . . . . Network Status 2 | . . . . . . 1 1 . . . . . . . . . . . . Repair Station Hacks 3 | . . . . . . . 3 . . . . . . . . . . . . Scan Component 2 | . . . . . . . 2 . . . . . . . . . . . . Repair 1 | . . . . . . . 1 . . . . . . . . . . . . Recycling Unit Hacks 3 | . . . . . . . . . . . 1 . . . . . 2 . . Report Inventory 3 | . . . . . . . . . . . 1 . . . . . 2 . . Scanalyzer 1 | . . . . . . 1 . . . . . . . . . . . . . Insert Component 1 | . . . . . . 1 . . . . . . . . . . . . . Garrison Access Hacks 3 | . . . . . 1 . 1 . . . . 1 . . . . . . . Seal Access 3 | . . . . . 1 . 1 . . . . 1 . . . . . . . Unauthorized Hacks 9 | . . . . . 2 1 2 . . . . 4 . . . . . . . Terminals 7 | . . . . . 2 . 1 . . . . 4 . . . . . . . Botnet 7 | . . . . . 2 . 1 . . . . 4 . . . . . . . Fabricators 2 | . . . . . . 1 1 . . . . . . . . . . . . Fabnet 2 | . . . . . . 1 1 . . . . . . . . . . . . Repair Stations . | . . . . . . . . . . . . . . . . . . . . Recycling Units . | . . . . . . . . . . . . . . . . . . . . Scanalyzers . | . . . . . . . . . . . . . . . . . . . . Garrison Access . | . . . . . . . . . . . . . . . . . . . . Data Cores Recovered 1 | . 1 . . . . . . . . . . . . . . . . . . Used 1 | . 1 . . . . . . . . . . . . . . . . . . Hacking Detections 28 | . 1 . . . 2 4 5 . . . 3 6 . . . . 5 . 2 Full Trace Events 3 | . . . . . . . . . . . 1 1 . . . . . . 1 Feedback Events . | . . . . . . . . . . . . . . . . . . . . Feedback Blocked . | . . . . . . . . . . . . . . . . . . . . Robot Schematics Acquired 7 | . . . . . . . . . . 7 . . . . . . . . . Robots Built . | . . . . . . . . . . . . . . . . . . . . Authchips . | . . . . . . . . . . . . . . . . . . . . Time . | . . . . . . . . . . . . . . . . . . . . Total Robot Build Rating . | . . . . . . . . . . . . . . . . . . . . Part Schematics Acquired 9 | . . . . . . . . . . 9 . . . . . . . . . Parts Built . | . . . . . . . . . . . . . . . . . . . . Authchips . | . . . . . . . . . . . . . . . . . . . . Time . | . . . . . . . . . . . . . . . . . . . . Total Part Build Rating . | . . . . . . . . . . . . . . . . . . . . Parts Repaired 1 | . . . . . . . 1 . . . . . . . . . . . . Time 70 | . . . . . . . 70 . . . . . . . . . . . . Parts Recycled . | . . . . . . . . . . . . . . . . . . . . Recycled Matter . | . . . . . . . . . . . . . . . . . . . . Retrieved Matter . | . . . . . . . . . . . . . . . . . . . . Retrieved Components . | . . . . . . . . . . . . . . . . . . . . Parts Scanalyzed 1 | . . . . . . 1 . . . . . . . . . . . . . Part Schematics Acquired . | . . . . . . . . . . . . . . . . . . . . Parts Damaged . | . . . . . . . . . . . . . . . . . . . . Bothacking | -11 -10 -10 -10 -9 -8 -7 -6 -6 -6 -6 -5 -5 -5 -5 -5 -4 -4 -3 -3 ------------ Run | Yrd Mat Min Exi Min Mat Fac Fac Low Low Dat Pro Fac Upp Upp War Pro Fac Res Tes Used RIF Installer . | . . . . . . . . . . . . . . . . . . . . Robots Hacked 6 | . . . . . . . . . . . 1 2 . . 1 . 2 . . Non-combat 2 | . . . . . . . . . . . . . . . . . 2 . . Combat 4 | . . . . . . . . . . . 1 2 . . 1 . . . . Robot Hacks Applied 2 | . . . . . . . . . . . . . . . . . 2 . . parse_system 1 | . . . . . . . . . . . . . . . . . 1 . . find_chute 1 | . . . . . . . . . . . . . . . . . 1 . . Relay Couplers Released 1 | . . . . . . . . . . . . 1 . . . . . . . Machine Destruction 1 | . . . . . . . . . . . . 1 . . . . . . . Fabnet Peak Effective % 3 | . . . . . . . . . . . 3 3 3 3 3 1 1 . . Autooverrided 4 | . . . . . . . . . . . 1 2 . . 1 . . . . Robots Rewired 11 | . . . . . . . . . . . 11 . . . . . . . . Allies Hacked . | . . . . . . . . . . . . . . . . . . . . Hacks Repelled . | . . . . . . . . . . . . . . . . . . . . Allies | -11 -10 -10 -10 -9 -8 -7 -6 -6 -6 -6 -5 -5 -5 -5 -5 -4 -4 -3 -3 -------- Run | Yrd Mat Min Exi Min Mat Fac Fac Low Low Dat Pro Fac Upp Upp War Pro Fac Res Tes Total Allies 15 | . . . . . . . . . . . 12 2 . . 1 . . . . Largest Group 6 | . . . . . . . . . . . 6 1 . . 1 . . . . Highest-Rated Group 202 | . . . . . . . . . . . 202 49 . . 14 . . . . Highest-Rated Ally 49 | . . . . . . . . . . . 41 49 . . 14 . . . . Total Orders . | . . . . . . . . . . . . . . . . . . . . Ally Attacks 49 | . . . . . . . . . . . 40 9 . . . . . . . Total Damage 1339 | . . . . . . . . . . . 1131 208 . . . . . . . Kills 6 | . . . . . . . . . . . 5 1 . . . . . . . Allies Corrupted . | . . . . . . . . . . . . . . . . . . . . Allies Melted . | . . . . . . . . . . . . . . . . . . . . Intel | -11 -10 -10 -10 -9 -8 -7 -6 -6 -6 -6 -5 -5 -5 -5 -5 -4 -4 -3 -3 ------- Run | Yrd Mat Min Exi Min Mat Fac Fac Low Low Dat Pro Fac Upp Upp War Pro Fac Res Tes Robot Analysis Total . | . . . . . . . . . . . . . . . . . . . . Derelict Logs Recovered 11 | . . 1 . . . . . 1 2 . 1 . 2 1 . 3 . . . Drone Launches . | . . . . . . . . . . . . . . . . . . . . Drone Recoveries . | . . . . . . . . . . . . . . . . . . . . Exploration | -11 -10 -10 -10 -9 -8 -7 -6 -6 -6 -6 -5 -5 -5 -5 -5 -4 -4 -3 -3 ------------- Run | Yrd Mat Min Exi Min Mat Fac Fac Low Low Dat Pro Fac Upp Upp War Pro Fac Res Tes Turns Passed 15154 | 108 311 700 728 242 863 1452 1424 347 789 103 1552 1099 904 1013 832 548 1557 139 443 Spaces Moved 9756 | 51 142 398 455 103 404 741 928 300 661 85 1045 506 627 792 629 316 1000 226 347 Core 143 | 4 . . . . . . . . . . . . . . . . 3 136 . Treads 1555 | 47 142 398 455 49 71 33 . . . . . 195 165 . . . . . . Legs 3904 | . . . . 54 296 471 . . . . 3 311 462 792 629 316 570 . . Wheels 3355 | . . . . . 37 237 928 300 661 85 1042 . . . . . 65 . . Hover 438 | . . . . . . . . . . . . . . . . . 101 36 301 Flight 361 | . . . . . . . . . . . . . . . . . 261 54 46 Fastest Speed 34 | 50 160 160 160 160 115 95 105 105 115 115 100 120 120 120 116 115 40 34 37 Average Speed 124 | 152 160 160 160 175 150 143 112 112 115 115 115 149 138 120 118 139 107 50 67 Slowest Speed 275 | 160 160 160 160 190 260 260 120 115 115 115 190 240 240 120 125 190 275 70 150 Overloaded Moves . | . . . . . . . . . . . . . . . . . . . . Propulsion Burnouts . | . . . . . . . . . . . . . . . . . . . . Robots Hopped . | . . . . . . . . . . . . . . . . . . . . Cave-ins Triggered . | . . . . . . . . . . . . . . . . . . . . Exploration Rate (%) 48 | 3 35 96 89 36 32 28 23 39 79 70 77 14 70 82 73 65 27 5 28 Regions Visited 19 Branch Regions 12 Pre-discovered Areas 4 | . . 1 1 . . . . . 1 1 . . . . . . . . . Known Exits Taken 14 | . 1 1 1 1 1 1 . . . . 1 1 1 1 1 1 1 1 . Unknown Exits Taken 5 | 1 . . . . . . 1 1 1 1 . . . . . . . . . Scrap Searched 16 | . . 1 . 1 . . . 2 3 . 2 . 2 3 . 2 . . . Spaces Dug 21 | . . . . . . 4 . . 4 . 3 5 . . . 1 1 2 1 Terrain Destroyed 655 | . . . . . 39 66 96 . 16 . 82 73 37 7 3 183 49 2 2 Melee 14 | . . . . . . 4 . . . . . 5 . . . 1 1 2 1 Projectile 122 | . . . . . 9 2 17 . 16 . 27 7 3 7 3 10 21 . . AOE 518 | . . . . . 30 60 79 . . . 55 61 34 . . 172 27 . . Terrain Rammed . | . . . . . . . . . . . . . . . . . . . . Walls Destroyed . | . . . . . . . . . . . . . . . . . . . . Machines Disabled . | . . . . . . . . . . . . . . . . . . . . Actions | -11 -10 -10 -10 -9 -8 -7 -6 -6 -6 -6 -5 -5 -5 -5 -5 -4 -4 -3 -3 --------- Run | Yrd Mat Min Exi Min Mat Fac Fac Low Low Dat Pro Fac Upp Upp War Pro Fac Res Tes Total 11534 | 67 175 429 456 132 550 945 1236 313 669 90 1233 678 647 839 693 374 1290 243 475 Wait 363 | . 2 6 . 2 14 29 153 . . . 34 30 . 7 2 6 37 4 37 Move 9737 | 50 141 397 454 102 403 740 927 299 660 84 1044 505 626 791 628 315 999 225 347 Hop . | . . . . . . . . . . . . . . . . . . . . Pick Up 203 | 4 3 3 . 4 25 17 31 2 . . 9 21 5 7 12 3 46 1 10 Fast Attach 119 | 7 . . . 1 10 12 13 2 . 3 4 8 . 1 8 5 24 7 14 Attach 124 | . . . . 2 13 16 10 1 . . 6 17 2 4 3 13 22 2 13 Detach 47 | . . . . . 2 4 10 1 . . . 2 . 3 6 3 9 . 7 Swap 81 | . 1 2 1 1 8 16 13 2 . . 4 6 4 4 5 . 14 . . Drop 159 | . . 3 1 1 11 16 41 6 . 3 10 4 2 12 15 . 26 2 6 Fire 589 | 6 28 18 . 19 64 90 38 . 9 . 72 76 8 10 14 27 77 . 33 Melee 53 | . . . . . . 4 . . . . . 9 . . . 1 30 2 7 Ram 2 | . . . . . . . . . . . . . . . . 1 . . 1 Kick 7 | . . . . . . 1 . . . . . . . . . . 6 . . Crush . | . . . . . . . . . . . . . . . . . . . . Escape Stasis . | . . . . . . . . . . . . . . . . . . . . Rewire 50 | . . . . . . . . . . . 50 . . . . . . . . Trap . | . . . . . . . . . . . . . . . . . . . . Miscellaneous . | . . . . . . . . . . . . . . . . . . . . Route ------- -11/Scrapyard -10/Materials -10/Mines (discovered 4 exits: *Mat x2 / *Exi / *Sub) -10/Exiles (discovered 2 exits: *Min x2) -9/Mines -8/Materials -7/Factory -6/Factory (discovered 3 exits: *Fac x2 / *Low) -6/Lower Caves -6/Lower Caves (discovered 2 exits: *Fac / *Dat) -6/Data Miner -5/Proximity Caves -5/Factory (discovered 4 exits: *Fac x2 / *Upp x2) -5/Upper Caves -5/Upper Caves -5/Warlord -4/Proximity Caves -4/Factory -3/Research (discovered 2 exits: *Res / *Tes) -3/Testing History --------- Turn | Location | Event 39 | -11/Scrapyard | Discovered new exit (range 15) 109 | -11/Scrapyard | Entered Materials 300 | -10/Materials | Build established: Mutant 305 | -10/Materials | Discovered new exit (range 16) 411 | -10/Materials | Identified exit to Mines 420 | -10/Materials | Entered Mines 535 | -10/Mines | Discovered new exit (range 12) 551 | -10/Mines | Identified exit to Materials 629 | -10/Mines | A weapon hastily lodged in a ceiling crevice suddenly fell to the ground 844 | -10/Mines | Learned location of Zion (-7) 1062 | -10/Mines | Discovered exit to Materials (range 14) 1086 | -10/Mines | Discovered new exit (range 6) 1096 | -10/Mines | Identified exit to Subcaves 1110 | -10/Mines | Deemed a non-threat by the Exiles lab entrance 1112 | -10/Mines | Discovered new exit (range 5) 1116 | -10/Mines | Identified exit to Exiles 1120 | -10/Mines | Entered Exiles 1144 | -10/Exiles | Discovered new exit (range 14) 1164 | -10/Exiles | Identified exit to Mines 1202 | -10/Exiles | Met 8R-AWN 1223 | -10/Exiles | Met EX-HEX 1293 | -10/Exiles | Met EX-BIN 1424 | -10/Exiles | Met EX-DEC 1525 | -10/Exiles | Visited The Gauntlet 1829 | -10/Exiles | Discovered exit to Mines (range 14) 1848 | -10/Exiles | Entered Mines 1859 | -9/Mines | Core integrity fell below 50% 1993 | -9/Mines | Lost 3 parts (1p1n1w) 2065 | -9/Mines | Discovered new exit (range 12) 2086 | -9/Mines | Identified exit to Materials 2090 | -9/Mines | Entered Materials 2090 | -8/Materials | Evolved 4 slots: Propulsion x2, Utility x2 2398 | -8/Materials | Build established: Scavenger-Skirmisher 2446 | -8/Materials | Lost 7 parts (2p3n2w) 2701 | -8/Materials | Lost 4 parts (1p2n1u) 2763 | -8/Materials | Discovered new exit (range 11) 2919 | -8/Materials | Build established: Scavenger-Mutant 2951 | -8/Materials | Identified exit to Factory 2953 | -8/Materials | Entered Factory 2953 | -7/Factory | Evolved 2 slots: Utility x2 3254 | -7/Factory | Build established: Hacker-Mutant 3631 | -7/Factory | Build established: Scavenger-Mutant 3972 | -7/Factory | Lost 5 parts (3n2w) 4224 | -7/Factory | Core integrity fell below 50% 4257 | -7/Factory | System corruption reached 10% 4402 | -7/Factory | Discovered new exit (range 4) 4404 | -7/Factory | Identified exit to Factory 4405 | -7/Factory | Entered another Factory area 4405 | -6/Factory | Evolved 2 slots: Propulsion x1, Weapon x1 4412 | -6/Factory | Lost 3 parts (1p2n) 4557 | -6/Factory | Found Prototype Launcher 4582 | -6/Factory | Discovered new exit (range 5) 4587 | -6/Factory | Identified exit to Factory 4641 | -6/Factory | Identified Rocket Array 5296 | -6/Factory | Found Prototype Processor 5296 | -6/Factory | Identified Exp. Targeting Computer 5302 | -6/Factory | Found Exp. Targeting Computer 5323 | -6/Factory | Build established: Hacker-Gunner 5455 | -6/Factory | Repaired Cld. Particle Cannon 5505 | -6/Factory | Discovered exit to Factory (range 7) 5784 | -6/Factory | Discovered new exit (range 15) 5829 | -6/Factory | Entered Lower Caves 5873 | -6/Lower Caves | Found DCF Scrap (12 items) 6066 | -6/Lower Caves | Learned Factory terminal intel 6104 | -6/Lower Caves | Discovered new exit (range 13) 6176 | -6/Lower Caves | Entered another Lower Caves area 6194 | -6/Lower Caves | Discovered exit to Factory (range 13) 6195 | -6/Lower Caves | Build established: Tank 6293 | -6/Lower Caves | Encountered a Warlord checkpoint 6416 | -6/Lower Caves | Spotted B-75 Beast 6417 | -6/Lower Caves | Destroyed B-75 Beast 6657 | -6/Lower Caves | Discovered new exit (range 10) 6659 | -6/Lower Caves | Learned location of 2 exits from Factory 6965 | -6/Lower Caves | Entered Data Miner 6965 | -6/Data Miner | Discovered new exit (range 6) 6991 | -6/Data Miner | Met Data Miner 7021 | -6/Data Miner | Learned location of Section 7 (-2) 7021 | -6/Data Miner | Acquired the access code to Warlord's prototype stash 7031 | -6/Data Miner | Received God Mode back door access code from Data Miner 7068 | -6/Data Miner | Entered Proximity Caves 7103 | -5/Proximity Caves | Attracted the attention of an 0b10 checkpoint 7132 | -5/Proximity Caves | Destroyed 10 combat bots 7386 | -5/Proximity Caves | Spotted B-75 Beast 7429 | -5/Proximity Caves | Destroyed B-75 Beast 7566 | -5/Proximity Caves | Entered a huge 0b10 base via the front door 7592 | -5/Proximity Caves | Learned Factory garrison access intel 7744 | -5/Proximity Caves | Build established: Skirmisher 7999 | -5/Proximity Caves | Discovered exit to Factory (range 8) 8040 | -5/Proximity Caves | Lost 5 allies 8189 | -5/Proximity Caves | Spotted B-75 Beast 8620 | -5/Proximity Caves | Entered Factory 8620 | -5/Factory | Evolved 2 slots: Propulsion x1, Utility x1 8621 | -5/Factory | Identified exit to Factory 8621 | -5/Factory | Identified exit to Upper Caves 8622 | -5/Factory | Loaded intel: 26 terminal locations 8623 | -5/Factory | Loaded intel: 4 garrison access locations 8649 | -5/Factory | Lost 5 parts (3n2w) 8721 | -5/Factory | Incoming investigation squad redirected 8819 | -5/Factory | Lost 6 parts (2n3u1w) 9318 | -5/Factory | Lost 3 parts (1n2u) 9508 | -5/Factory | Discovered exit to Factory (range 15) 9590 | -5/Factory | Lost 5 parts (1n2u2w) 9635 | -5/Factory | Discovered exit to Upper Caves (range 14) 9706 | -5/Factory | Found Prototype Launcher 9719 | -5/Factory | Entered Upper Caves 9966 | -5/Upper Caves | Build established: Scavenger-Gunner 10501 | -5/Upper Caves | Learned Factory stockpile data 10554 | -5/Upper Caves | Learned 4 Factory zone layouts 10615 | -5/Upper Caves | Discovered new exit (range 7) 10620 | -5/Upper Caves | Attracted the attention of an 0b10 checkpoint 10622 | -5/Upper Caves | Identified exit to Upper Caves 10623 | -5/Upper Caves | Entered another Upper Caves area 10709 | -5/Upper Caves | Learned 4 Factory zone layouts 10968 | -5/Upper Caves | Attracted the attention of an 0b10 checkpoint 11126 | -5/Upper Caves | Discovered new exit (range 11) 11138 | -5/Upper Caves | Encountered a Warlord checkpoint 11140 | -5/Upper Caves | Identified exit to Warlord 11631 | -5/Upper Caves | Identified Mni. Smartbomb Launcher 11636 | -5/Upper Caves | Entered Warlord 11958 | -5/Warlord | Met Warlord 11971 | -5/Warlord | Opened Warlord's prototype stash 11983 | -5/Warlord | Warlord's base attacked by MAIN.C 11989 | -5/Warlord | Found Prototype Device 11989 | -5/Warlord | Identified Thermal Barrier 11996 | -5/Warlord | Found Prototype Device 11996 | -5/Warlord | Identified Exp. Cloaking Device 12010 | -5/Warlord | Found Prototype Reactor 12313 | -5/Warlord | Warlord forces counterattacked 12315 | -5/Warlord | P-70 Sage assimilated allied 0P-JPU(g) 12322 | -5/Warlord | Spotted Executioner 12334 | -5/Warlord | Destroyed Executioner 12343 | -5/Warlord | Spotted Executioner 12394 | -5/Warlord | Lost 6 allies 12438 | -5/Warlord | Spotted Striker 12455 | -5/Warlord | Discovered new exit (range 12) 12467 | -5/Warlord | Identified exit to Proximity Caves 12468 | -5/Warlord | Entered Proximity Caves 12496 | -4/Proximity Caves | Lost 17 allies 12502 | -4/Proximity Caves | Attracted the attention of an 0b10 outpost 12531 | -4/Proximity Caves | System corruption reached 10% 12561 | -4/Proximity Caves | System corruption reached 30% 12563 | -4/Proximity Caves | Core integrity fell below 50% 12635 | -4/Proximity Caves | Learned Research terminal intel 12680 | -4/Proximity Caves | Lost 19 parts (1p7n7u4w) 12920 | -4/Proximity Caves | Build established: Mutant 12987 | -4/Proximity Caves | Learned location of 1 exit from Proximity Caves 13016 | -4/Proximity Caves | Entered Factory 13016 | -4/Factory | Evolved 2 slots: Power x1, Utility x1 13017 | -4/Factory | Identified Vortex Chain Reactor 13379 | -4/Factory | Lost 6 parts (2n3u1w) 13393 | -4/Factory | System corruption reached 10% 13594 | -4/Factory | System corruption reached 30% 14084 | -4/Factory | Spotted B-86 Titan 14214 | -4/Factory | Lost 3 parts (3w) 14427 | -4/Factory | Lost 20 parts (2p9n4u5w) 14439 | -4/Factory | Core integrity fell below 50% 14568 | -4/Factory | Discovered new exit (range 12) 14572 | -4/Factory | Identified exit to Research 14573 | -4/Factory | Entered Research 14573 | -3/Research | Evolved 2 slots: Utility x2 14574 | -3/Research | Loaded intel: 24 terminal locations 14575 | -3/Research | Discovered new exit (range 10) 14592 | -3/Research | Identified exit to Testing 14648 | -3/Research | Discovered new exit (range 5) 14650 | -3/Research | Identified exit to Research 14687 | -3/Research | Lost 3 parts (3u) 14712 | -3/Research | Entered Testing 14939 | -3/Testing | Lost 4 parts (1p3w) 15010 | -3/Testing | Found Prototype Device 15010 | -3/Testing | Identified AEGIS Remote Shield 15083 | -3/Testing | Incoming investigation squad redirected 15124 | -3/Testing | Core integrity fell below 50% 15143 | -3/Testing | Found Prototype Ballistic Cannon 15143 | -3/Testing | Identified Perforator 15155 | -3/Testing | Self-destructed Last Messages --------------- 15150_ Destroyed Field Laser. 15150_ HV Slug penetrates Reinforced Shell. 15150_ HV Slug penetrates L-61 Swordsman. 15150_ L-61 Swordsman knocked back. 15150_ HV Slug penetrates L-61 Swordsman. 15150_ L-61 Swordsman knocked back. 15150_ HV Slug penetrates L-61 Swordsman. 15150_ HV Slug penetrates Wall. 15150_ HV Slug penetrates L-61 Swordsman. 15150_ HV Slug penetrates Wall. 15151_ Penetrated by Slug. 15151_ Slug penetrates Wall. 15154_ Slammed into Y-72 Warden. 15154_ Cmb. Antigrav System destroyed. 15154_ R-10 Processor collects Xenon Bombardment Thruster. 15155_ Penetrated by Slug. 15155_ Critical hit (Destroy). 15155_ Lgt. Particle Reactor destroyed. 15155_ Slug penetrates Reinforced Shell. 15155_ Acquired 33 matter. Map ----- +----------------------------------------------------+ | ?????????????????????????????????????????????????? | | ?????????????????????????????????????????????????? | | ?????????????????????????????????????????????????? | | ?????????????????????????????????????????????????? | | ?????????????????????????????????????????????????? | | ?????????????????????????????????????????????????? | | ?????????????????????????????????????????????????? | | ?????????????????????????????????????????????????? | | ?????????????????????????????????????????????????? | | ?????????????????????????????????????????????????? | | ????????????????????????????? ?????????????????? | | ????????????????????????????? #???????????????? | | ????????????????????????????? #???????????????? | | ????????????????????????????? #???????????????? | | ????????????????????????????? #???????????????? | | ????????????????????????????? #???????????????? | | ????????????????????????????# #???????????????? | | ????????????????????????????# #???????????????? | | ????????????????????????????# #???????????????? | | ????????????????????????????# #???????????????? | | ????????????????????????????# ########????????? | | ???##############???????##### #????????? | | ???# #?????#""%" # #????????? | | ???# ! #?????#="Y" # #????????? | | ???# ?????##"!Y"b/ #????????? | | ???# """"" #????#"*g@R # ### #?????? | | ???# """"" #????# " l # #???????????????? | | ???# """"" #????#""""" # #???????????????? | | ???# #????######## #???????????????? | | ???# """"" ############# #???????????????? | | ???# """"" ## [ # #???????????????? | | ???# """"" ## = # #???????????????? | | ???# ## # #???????????????? | | ???# ## """ """ # #???????????????? | | ???#####+#+####### """ """ # #???????????????? | | ???????# + """ """ # #???????????????? | | ######## ###### + #???????????????? | | # /##???# """ """ # ######+######???? | | """""" # #????# """ """ # # ????? | | """""" # #????# """ """ # # ?????? | | """""" # #????# # # ??????? | | # ############+#### # ??????? | | # = # ??#???? | | + # """ """? #???? | | # = + """" "!" #???? | | # # """ " " #???? | | # # #???? | | # """ """ """ # #???? | | # """ """ """ # #???? | | # """ """ """ # #???? | +----------------------------------------------------+ Best States ------------- Heat Dissipation 93 Coolant Potential 120 Energy Generation 55 Energy Capacity 700 Matter Stores 300 Matter Capacity 300 Sight Range 16 Robot Scan Range 15 Terrain Scan Range 20 Terrain Scan Density 10 Jamming Range 16 Cloak Strength 4 Additional Mass Support 16 Armor Coverage 600 Resistance: KI 30 Resistance: TH 50 Phase Shifting 5 Evasion (%) 62 Targeting Accuracy 12 Target Analysis 9 Core Analysis 6 Recoil Reduction 3 Particle Charging 20 Offensive Hacking 20 Defensive Hacking 10 Item Schematics ----------------- Combat Drone Bay | -6/Data Miner | Free Lgt. Regenerative Plating | -6/Data Miner | Free Cld. Gravmag System | -6/Data Miner | Free Prc. Matter Filter | -6/Data Miner | Free Cld. Plasma Rifle | -6/Data Miner | Free Myomer Leg | -6/Data Miner | Free Adv. Transmission Jammer | -6/Data Miner | Free Adv. Focal Shield | -6/Data Miner | Free Railgun | -6/Data Miner | Free Robot Schematics ------------------ R-10 Processor | -6/Data Miner | Free Y-54 Guardian | -6/Data Miner | Free B-60 Warrior | -6/Data Miner | Free D-63 Destroyer | -6/Data Miner | Free G-67 Veteran | -6/Data Miner | Free E-15 Imp | -6/Data Miner | Free M-36 Artificer | -6/Data Miner | Free Fabricated ------------ Nothing Alien Tech Used ----------------- None Achievements -------------- None Challenges ------------ None Game ------ Seed SchematicBottomlessRouter Manual? 0 Play Time 01:56:29 Cumulative 129.6 hours Start 2024.10.16 @ 02:09:56 End 2024.10.16 @ 12:44:22 Sessions 3 Manual Loads 0 Difficulty Rogue Special Mode None Game No. 151 Rogue 151 Adventurer 0 Explorer 0 Win Type - Total 2 Types 2/0/0/0/0/0/0/0/0 Lore% 61 Gallery% 66 Achievement% 50 Wizard Run 0 Options --------- Layout 0 ASCII 0 Keyboard 1 Movement Numpad Keybinds 0 Fullscreen 2 Font 18/SmallcapsGlow Map View 76x50 Zoom Use 0% Tactical HUD 1 Map Filters NONE Filters NONE Steam 1 RUN: fa6a721c-923c-489b-bcc1-a676eb71f5d8